bitfinex/quotes_BTCUSD_20250303
["timestamp","ask_amount","ask_price","bid_price","bid_amount"]
[1741006635710,0.00228959,93237.0,93236.0,0.31407465]
[1741006636024,0.00232959,93237.0,93236.0,0.31407465]
[1741006640282,0.00232959,93237.0,93236.0,0.36307465]
[1741006642743,0.00232959,93237.0,93236.0,0.36341545]
[1741006643497,0.00232959,93237.0,93236.0,0.31441545]
[1741006643705,0.00232959,93237.0,93236.0,0.36341545]
[1741006645717,0.00232959,93237.0,93236.0,0.31441545]
[1741006646462,0.00232959,93237.0,93236.0,0.36341545]
[1741006648649,0.00232959,93237.0,93236.0,0.31441545]
[1741006649508,0.00232959,93237.0,93236.0,0.2521746]
[1741006650049,0.00232959,93237.0,93236.0,0.18451545]
[1741006650247,0.01915326,93237.0,93236.0,0.18451545]
[1741006655781,0.00232959,93237.0,93236.0,0.18451545]
[1741006659166,0.01915364,93237.0,93236.0,0.18451545]
[1741006665812,0.01915364,93237.0,93236.0,0.02363345]
[1741006665813,0.16320959,93237.0,93236.0,0.02363345]
[1741006666033,0.16781768,93237.0,93236.0,0.02363345]
[1741006666450,0.16881768,93237.0,93236.0,0.02363345]
[1741006666901,0.16781768,93237.0,93236.0,0.02063345]
[1741006667098,0.16681768,93237.0,93236.0,0.01563345]
[1741006667300,0.16681768,93237.0,93236.0,0.01963345]
[1741006667479,0.16681768,93237.0,93236.0,0.02263345]
[1741006667678,0.16681768,93237.0,93236.0,0.01863345]
[1741006668198,0.16681768,93237.0,93236.0,0.02163345]
[1741006669098,0.18364347,93237.0,93236.0,0.02163345]
[1741006673270,0.02176347,93237.0,93236.0,0.19332557]
[1741006673948,0.01715538,93237.0,93236.0,0.18251545]
[1741006674415,0.02175176,93237.0,93236.0,0.19354444]
[1741006674646,0.01715538,93237.0,93236.0,0.19354444]
[1741006675057,0.00032959,93237.0,93236.0,0.19354444]
[1741006678155,0.00032959,93237.0,93236.0,0.27344444]
[1741006678407,0.0171533,93237.0,93236.0,0.27344444]
[1741006678607,0.0171533,93237.0,93236.0,0.31974444]
[1741006678761,0.0171533,93237.0,93236.0,0.36874444]
[1741006679875,0.0171533,93237.0,93236.0,0.36574444]
[1741006680080,0.0181533,93237.0,93236.0,0.36974444]
[1741006680290,0.0181533,93237.0,93236.0,0.36674444]
[1741006680663,0.00232959,93237.0,93236.0,0.37174444]
[1741006690100,2e-07,93247.0,93246.0,0.209864]
[1741006690299,2e-07,93247.0,93246.0,1.46348945]
[1741006690445,2e-07,93247.0,93246.0,1.4765295]
[1741006691546,0.0003412,93269.0,93268.0,0.160826]
[1741006691723,0.00046077,93269.0,93268.0,0.33332685]
[1741006692733,0.00546077,93269.0,93268.0,0.33332685]
[1741006693138,0.00846077,93269.0,93268.0,0.33332685]
[1741006693340,0.00346077,93269.0,93268.0,0.33332685]
[1741006693540,0.00846077,93269.0,93268.0,0.33332685]
[1741006694345,0.00546077,93269.0,93268.0,0.33332685]
[1741006694815,0.00046077,93269.0,93268.0,0.33832685]
[1741006695019,0.00046077,93269.0,93268.0,0.33332685]
[1741006695195,0.00146077,93269.0,93268.0,0.34032685]
[1741006695338,0.00246077,93269.0,93268.0,0.34632685]
[1741006701151,0.00246077,93269.0,93268.0,0.013]
[1741006701364,0.16428577,93269.0,93268.0,0.013]
[1741006701564,0.16920935,93269.0,93268.0,0.013]
[1741006701967,0.16820935,93269.0,93268.0,0.006]
[1741006702165,0.160856,93251.0,93250.0,0.07572]
[1741006702488,0.001,93262.0,93250.0,0.07572]
[1741006702663,0.00491298,93251.0,93250.0,0.07572]
[1741006702878,0.214462,93257.0,93250.0,0.07572]
[1741006703082,0.160848,93256.0,93252.0,0.01454085]
[1741006703296,0.0049156,93256.0,93253.0,0.01454085]
[1741006703520,0.0049156,93256.0,93255.0,0.17538985]
[1741006703690,0.01682208,93260.0,93257.0,0.01454085]
[1741006703890,0.01682208,93260.0,93256.0,0.01454085]
[1741006704089,0.00491717,93259.0,93256.0,0.17538785]
[1741006704533,0.00491717,93259.0,93255.0,0.01454085]
[1741006704956,0.00491664,93258.0,93256.0,0.01454085]
[1741006705153,0.00491664,93258.0,93257.0,0.004]
[1741006705414,0.01682208,93260.0,93258.0,0.01454085]
[1741006705758,0.161837,93262.0,93257.0,0.17538585]
[1741006705977,0.001,93262.0,93257.0,0.01454085]
[1741006706200,0.160838,93261.0,93257.0,0.17538585]
[1741006706407,0.161837,93262.0,93257.0,0.17538585]
[1741006706626,0.3241,93267.0,93256.0,0.01454085]
[1741006706833,0.001,93266.0,93265.0,0.160832]
[1741006707087,0.3241,93267.0,93265.0,0.01454085]
[1741006707292,0.3241,93267.0,93266.0,0.17537085]
[1741006707508,0.00046077,93269.0,93268.0,0.17536685]
[1741006707707,0.00046077,93269.0,93268.0,0.01454085]
[1741006707866,0.16128577,93269.0,93268.0,0.01454085]
[1741006708287,0.00046077,93269.0,93268.0,0.01454085]
[1741006708514,0.00046077,93269.0,93268.0,0.17536685]
[1741006708715,0.00146077,93269.0,93268.0,0.18636685]
[1741006709123,0.0182806,93269.0,93268.0,0.18136685]
[1741006709445,0.0172806,93269.0,93268.0,0.17936685]
[1741006709581,0.0172806,93269.0,93268.0,0.18336685]
[1741006711669,0.0172806,93269.0,93268.0,0.26226685]
[1741006715819,0.00046077,93269.0,93268.0,0.26226685]
[1741006718174,0.00046077,93269.0,93268.0,0.25826685]
[1741006718497,0.00046077,93269.0,93268.0,0.25426685]
[1741006718698,0.00146077,93269.0,93268.0,0.26726685]
[1741006721707,0.00146077,93269.0,93268.0,0.34294685]
[1741006725128,0.00146077,93269.0,93268.0,0.18836685]
[1741006729027,0.00146077,93269.0,93268.0,0.31706685]
[1741006732376,0.00146077,93269.0,93268.0,0.18836685]
[1741006732785,0.00708695,93269.0,93268.0,0.18836685]
[1741006732985,0.00146077,93269.0,93268.0,0.18836685]
[1741006733752,0.00146077,93269.0,93268.0,0.02754085]
[1741006733950,0.16228577,93269.0,93268.0,0.013]
[1741006734348,0.16792733,93269.0,93268.0,0.02754085]
[1741006734961,0.16892733,93269.0,93268.0,0.013]
[1741006735564,0.16792733,93269.0,93268.0,0.02054085]
[1741006735854,0.16792733,93269.0,93268.0,0.01454085]
[1741006736038,0.16792733,93269.0,93268.0,0.01554085]
[1741006737329,0.49202733,93269.0,93268.0,0.001]
[1741006740393,0.50884965,93269.0,93268.0,0.001]
[1741006740575,0.34802465,93269.0,93268.0,0.01554085]
[1741006740994,0.50884965,93269.0,93268.0,0.01554085]
[1741006741562,0.50784965,93269.0,93268.0,0.01554085]
[1741006741773,0.34702465,93269.0,93268.0,0.01554085]
[1741006741973,0.50884965,93269.0,93268.0,0.01554085]
[1741006742188,0.34802465,93269.0,93268.0,0.01554085]
[1741006742392,0.50884965,93269.0,93268.0,0.01554085]
[1741006742799,0.34702465,93269.0,93268.0,0.01554085]
[1741006743214,0.34802465,93269.0,93268.0,0.01554085]
[1741006743620,0.34802465,93269.0,93268.0,0.17636685]
[1741006744255,0.34702465,93269.0,93268.0,0.17636685]
[1741006744764,0.34802465,93269.0,93268.0,0.01554085]
[1741006745701,0.33120233,93269.0,93268.0,0.01554085]
[1741006746096,0.49202733,93269.0,93268.0,0.01554085]
[1741006746747,0.33120233,93269.0,93268.0,0.01554085]
[1741006747413,0.49202733,93269.0,93268.0,0.01554085]
[1741006748135,0.16792733,93269.0,93268.0,0.01554085]
[1741006748817,0.18474851,93269.0,93268.0,0.01554085]
[1741006749029,0.16792733,93269.0,93268.0,0.01554085]
[1741006749230,0.26304906,93269.0,93268.0,0.001]
[1741006751299,0.18474906,93269.0,93268.0,0.001]
[1741006751523,0.18474906,93269.0,93268.0,0.01554085]
[1741006752117,0.18474906,93269.0,93268.0,0.01454085]
[1741006752276,0.18974906,93269.0,93268.0,0.01454085]
[1741006752476,0.02792406,93269.0,93268.0,0.17536685]
[1741006752705,0.0202825,93269.0,93268.0,0.17536685]
[1741006752922,0.0192825,93269.0,93268.0,0.17536685]
[1741006753696,0.0202825,93269.0,93268.0,0.17536685]
[1741006753899,0.0269043,93269.0,93268.0,0.01454085]
[1741006754112,0.1877293,93269.0,93268.0,0.01454085]
[1741006754327,0.0259043,93269.0,93268.0,0.01454085]
[1741006754531,0.1867293,93269.0,93268.0,0.01454085]
[1741006754664,0.1847293,93269.0,93268.0,0.01454085]
[1741006754861,0.1847293,93269.0,93268.0,0.01654085]
[1741006755435,0.1847293,93269.0,93268.0,0.01454085]
[1741006755566,0.1847293,93269.0,93268.0,0.01654085]
[1741006755774,0.16790757,93269.0,93268.0,0.01854085]
[1741006755973,0.16790757,93269.0,93268.0,0.01654085]
[1741006756175,0.16790757,93269.0,93268.0,0.01854085]
[1741006756808,0.16790757,93269.0,93268.0,0.005]
[1741006756985,0.28990757,93269.0,93268.0,0.003]
[1741006757198,0.160854,93252.0,93248.0,0.01454085]
[1741006757545,0.001,93262.0,93256.0,0.01454085]
[1741006757668,0.161837,93262.0,93256.0,0.01454085]
[1741006757869,0.001,93256.0,93255.0,0.01454085]
[1741006758310,0.001,93256.0,93252.0,0.01454085]
[1741006758510,0.001,93256.0,93252.0,0.17539285]
[1741006758711,0.001,93256.0,93254.0,0.01454085]
[1741006758868,0.001,93256.0,93255.0,0.01454085]
[1741006759072,0.001,93257.0,93256.0,0.17538785]
[1741006759275,0.001,93257.0,93256.0,0.01454085]
[1741006759631,0.01782195,93257.0,93256.0,0.01454085]
[1741006759995,0.17866695,93257.0,93256.0,0.01454085]
[1741006760394,0.17866695,93257.0,93256.0,0.01554085]
[1741006760993,0.17866695,93257.0,93256.0,0.01654085]
[1741006763726,0.18427296,93257.0,93256.0,0.01654085]
[1741006764868,0.02242796,93257.0,93256.0,0.01654085]
[1741006765030,0.02242796,93257.0,93256.0,0.17738785]
[1741006765438,0.01782195,93257.0,93256.0,0.17738785]
[1741006765867,0.00660752,93257.0,93256.0,0.17738785]
[1741006766457,0.00560752,93257.0,93256.0,0.17738785]
[1741006766656,0.00660752,93257.0,93256.0,0.25608785]
[1741006766863,0.001,93257.0,93256.0,0.25608785]
[1741006767331,0.00660752,93257.0,93256.0,0.25608785]
[1741006768259,0.00660752,93257.0,93256.0,0.17738785]
[1741006768757,0.001,93257.0,93256.0,0.17738785]
[1741006768919,0.01782221,93257.0,93256.0,0.17738785]
[1741006769122,0.02343662,93257.0,93256.0,0.17738785]
[1741006770013,0.02343662,93257.0,93256.0,0.01654085]
[1741006770215,0.02343662,93257.0,93256.0,0.17738785]
[1741006770416,0.01782221,93257.0,93256.0,0.17738785]
[1741006770917,0.02243662,93257.0,93256.0,0.17738785]
[1741006771131,0.01682221,93257.0,93256.0,0.17738785]
[1741006771708,0.01682221,93257.0,93256.0,0.30328785]
[1741006777001,0.001,93263.0,93262.0,0.160837]
[1741006777197,0.001,93263.0,93262.0,0.17537785]
[1741006777403,0.00662157,93263.0,93262.0,0.17537785]
[1741006777560,0.001,93263.0,93262.0,0.17537785]
[1741006778205,0.002,93263.0,93262.0,0.17537785]
[1741006780020,0.01882105,93263.0,93262.0,0.17537785]
[1741006780839,0.01782105,93263.0,93262.0,0.17537785]
[1741006780981,0.01782105,93263.0,93262.0,0.17637785]
[1741006781784,0.01782105,93263.0,93262.0,0.01654085]
[1741006781985,0.02344262,93263.0,93262.0,0.01654085]
[1741006782191,0.02344262,93263.0,93262.0,0.17737785]
[1741006783168,0.02344262,93263.0,93262.0,0.17637785]
[1741006783540,0.02344262,93263.0,93262.0,0.17737785]
[1741006785877,0.02244262,93263.0,93262.0,0.17737785]
[1741006786329,0.02244262,93263.0,93262.0,0.25527785]
[1741006787084,0.01682105,93263.0,93262.0,0.25527785]
[1741006787286,0.00046077,93269.0,93268.0,0.160826]
[1741006787503,0.00046077,93269.0,93268.0,0.17536685]
[1741006788505,0.00146077,93269.0,93268.0,0.17536685]
[1741006790044,0.00146077,93269.0,93268.0,0.01454085]
[1741006790245,0.16890604,93269.0,93268.0,0.01454085]
[1741006790454,0.16890604,93269.0,93268.0,0.01554085]
[1741006790455,0.00146077,93269.0,93268.0,0.01554085]
[1741006790701,0.16790534,93269.0,93268.0,0.01554085]
[1741006790858,0.00146077,93269.0,93268.0,0.01554085]
[1741006791053,0.00708034,93269.0,93268.0,0.01554085]
[1741006791281,0.00146077,93269.0,93268.0,0.01554085]
[1741006791460,0.00708034,93269.0,93268.0,0.01554085]
[1741006791646,0.00146077,93269.0,93268.0,0.01554085]
[1741006791849,0.02390047,93269.0,93268.0,0.01554085]
[1741006792040,0.02290047,93269.0,93268.0,0.17636685]
[1741006792506,0.0172809,93269.0,93268.0,0.17636685]
[1741006793616,0.0172809,93269.0,93268.0,0.29946774]
[1741006793914,0.0172809,93269.0,93268.0,0.29796685]
[1741006794826,0.0172809,93269.0,93268.0,0.29696685]
[1741006795193,0.0172809,93269.0,93268.0,0.30196685]
[1741006795395,0.0172809,93269.0,93268.0,0.30796685]
[1741006795579,0.00046077,93269.0,93268.0,0.30796685]
[1741006801720,0.0003412,93279.0,93278.0,0.282909]
[1741006801924,0.0003412,93279.0,93278.0,0.29744985]
[1741006802121,0.0003412,93279.0,93278.0,0.01454085]
[1741006802308,0.001,93275.0,93268.0,0.007]
[1741006802528,0.0003412,93279.0,93268.0,0.007]
[1741006802529,0.160825,93269.0,93268.0,0.007]
[1741006802726,0.161825,93269.0,93268.0,0.007]
[1741006803157,0.161825,93269.0,93268.0,0.02854085]
[1741006803553,0.1619954,93269.0,93268.0,0.014]
[1741006803756,0.001,93260.0,93253.0,0.00011957]
[1741006803953,0.001,93260.0,93259.0,0.160842]
[1741006804153,0.001,93260.0,93259.0,0.17538285]
[1741006805269,0.001,93260.0,93259.0,0.01454085]
[1741006805502,0.001,93260.0,93259.0,0.01854085]
[1741006805880,0.16184,93260.0,93259.0,0.004]
[1741006806628,0.16184,93260.0,93259.0,0.009]
[1741006807069,0.46184,93260.0,93259.0,0.009]
[1741006807395,0.78594,93260.0,93259.0,0.009]
[1741006808299,0.78594,93260.0,93259.0,0.005]
[1741006809196,0.78594,93260.0,93259.0,0.008]
[1741006809594,0.78594,93260.0,93259.0,0.005]
[1741006809939,0.460851,93254.0,93253.0,0.00011957]
[1741006810148,0.461851,93254.0,93253.0,0.00011957]
[1741006810343,0.544451,93254.0,93253.0,0.00011957]
[1741006810545,0.868551,93254.0,93253.0,0.00011957]
[1741006811955,0.869551,93254.0,93253.0,0.00011957]
[1741006812598,0.917151,93254.0,93253.0,0.00011957]
[1741006813210,0.916151,93254.0,93253.0,0.00011957]
[1741006813628,0.919151,93254.0,93253.0,0.00011957]
[1741006814224,0.921151,93254.0,93253.0,0.00011957]
[1741006817633,0.92674635,93254.0,93253.0,0.00011957]
[1741006818671,0.60264635,93254.0,93253.0,0.00011957]
[1741006819235,0.61947313,93254.0,93253.0,0.00011957]
[1741006822199,0.61947313,93254.0,93247.0,0.0003406]
[1741006822200,0.461861,93248.0,93247.0,1.7e-07]
[1741006822407,0.543361,93248.0,93247.0,1.7e-07]
[1741006822602,0.54894441,93248.0,93247.0,1.7e-07]
[1741006823926,0.55394441,93248.0,93247.0,1.7e-07]
[1741006824337,0.56094441,93248.0,93247.0,0.00100017]
[1741006825897,0.71986085,93248.0,93247.0,0.00100017]
[1741006826098,0.61094441,93248.0,93247.0,0.00100017]
[1741006826524,0.65674441,93248.0,93247.0,1.7e-07]
[1741006827260,0.65674441,93248.0,93247.0,9.7e-07]
[1741006829232,0.538569,93243.0,93242.0,7.7e-07]
[1741006829515,0.54410578,93243.0,93242.0,7.7e-07]
[1741006830292,0.55110578,93243.0,93242.0,7.7e-07]
[1741006830767,0.54978852,93243.0,93242.0,7.7e-07]
[1741006831302,0.54717168,93243.0,93242.0,7.7e-07]
[1741006831942,0.55217168,93243.0,93242.0,7.7e-07]
[1741006832167,0.55095168,93243.0,93242.0,7.7e-07]
[1741006833884,0.17547168,93243.0,93242.0,7.7e-07]
[1741006835278,0.01753678,93243.0,93242.0,0.09234162]
[1741006835697,0.012,93243.0,93242.0,0.09234162]
[1741006836310,0.0105375,93243.0,93242.0,0.09234162]
[1741006836514,0.006,93243.0,93242.0,0.09234162]
[1741006836729,0.00654267,93243.0,93242.0,0.09234162]
[1741006836931,0.00754267,93243.0,93242.0,0.25321262]
[1741006837574,0.002,93243.0,93242.0,0.25321262]
[1741006838273,0.0001704,93263.0,93242.0,0.13894162]
[1741006838393,0.0001704,93263.0,93243.0,0.01454085]
[1741006838594,0.3,93254.0,93243.0,0.22903285]
[1741006838804,0.3,93255.0,93247.0,0.01454085]
[1741006839005,0.31682433,93258.0,93252.0,0.25509485]
[1741006839006,0.0055508,93253.0,93252.0,0.25509485]
[1741006839207,0.00556339,93254.0,93253.0,0.25509285]
[1741006839439,0.01682433,93258.0,93257.0,0.289545]
[1741006839901,0.01682433,93258.0,93257.0,0.30408585]
[1741006841771,0.01782433,93258.0,93257.0,0.30408585]
[1741006841943,0.0001704,93263.0,93262.0,0.286637]
[1741006842157,0.0001704,93263.0,93262.0,0.37661785]
[1741006842955,0.0001704,93269.0,93268.0,0.160826]
[1741006843196,0.0003412,93279.0,93273.0,0.0457]
[1741006843431,0.0003412,93279.0,93278.0,0.17534985]
[1741006843543,0.00046072,93279.0,93278.0,0.25764985]
[1741006843950,0.00046072,93279.0,93278.0,0.26830374]
[1741006844275,0.00046072,93279.0,93278.0,0.34370374]
[1741006844475,0.00046072,93279.0,93278.0,0.34970374]
[1741006844684,0.00146072,93279.0,93278.0,0.34970374]
[1741006844927,0.00146072,93279.0,93278.0,0.34870374]
[1741006845582,0.00146072,93279.0,93278.0,0.39740374]
[1741006845811,0.00246072,93279.0,93278.0,0.40140374]
[1741006847163,0.3001705,93310.0,93299.0,0.289473]
[1741006847350,0.0001705,93310.0,93299.0,0.30401385]
[1741006847759,0.0001705,93310.0,93299.0,1.3799385]
[1741006848094,0.0001705,93310.0,93309.0,0.160756]
[1741006848291,0.00029004,93310.0,93309.0,0.42959698]
[1741006848515,0.00029004,93310.0,93309.0,0.42809685]
[1741006848933,0.00029004,93310.0,93309.0,0.42709685]
[1741006849478,0.002,93313.0,93312.0,0.210751]
[1741006849695,0.002,93313.0,93312.0,0.40449167]
[1741006849875,0.002,93313.0,93312.0,0.40299185]
[1741006851109,0.003,93313.0,93312.0,0.40999185]
[1741006851514,0.003,93313.0,93312.0,0.41699185]
[1741006852269,0.0003408,93324.0,93323.0,0.05]
[1741006852479,0.001,93361.0,93334.0,0.160713]
[1741006852689,0.002,93377.0,93334.0,1.5045385]
[1741006852690,0.01680706,93350.0,93334.0,1.5045385]
[1741006853021,0.01680706,93350.0,93334.0,1.5535385]
[1741006853962,0.01680706,93350.0,93334.0,1.5605385]
[1741006855296,0.01680706,93350.0,93334.0,1.5675385]
[1741006855869,0.001,93364.0,93334.0,1.5675385]
[1741006858237,0.003,93356.0,93334.0,1.3931785]
[1741006858437,0.001,93348.0,93334.0,0.378033]
[1741006859027,0.002,93356.0,93334.0,0.39257385]
[1741006859232,0.01880495,93345.0,93334.0,0.39257385]
[1741006862046,0.01880495,93345.0,93334.0,0.378033]
[1741006862484,0.01880495,93345.0,93334.0,0.39257385]
[1741006863617,0.002,93345.0,93334.0,0.39257385]
[1741006864107,0.002,93345.0,93334.0,0.44257385]
[1741006864714,0.002,93345.0,93344.0,0.160695]
[1741006864887,0.0023984,93345.0,93344.0,0.2535352]
[1741006865090,0.0023984,93345.0,93344.0,0.25203585]
[1741006865611,0.002,93356.0,93355.0,0.160676]
[1741006865774,0.00211947,93356.0,93355.0,0.25641685]
[1741006866723,0.00211947,93356.0,93355.0,0.2674202]
[1741006867771,0.00211947,93356.0,93355.0,0.2814202]
[1741006868537,0.00211947,93356.0,93355.0,0.28956425]
[1741006870551,0.00211947,93356.0,93355.0,0.33806425]
[1741006871343,0.00211947,93356.0,93355.0,0.41334425]
[1741006871537,0.00211947,93356.0,93355.0,0.46334425]
[1741006872057,0.00211947,93356.0,93355.0,0.76334425]
[1741006872262,8.7e-07,93357.0,93356.0,0.65741585]
[1741006873252,0.002,93366.0,93355.0,0.1569274]
[1741006873253,8.7e-07,93366.0,93365.0,0.30019985]
[1741006873419,8.7e-07,93366.0,93365.0,1.4211245]
[1741006873636,8.7e-07,93366.0,93365.0,1.7211245]
[1741006873872,8.7e-07,93366.0,93365.0,1.7963645]
[1741006874399,8.7e-07,93366.0,93365.0,1.8033645]
[1741006874801,8.7e-07,93366.0,93365.0,1.7963645]
[1741006875004,8.7e-07,93366.0,93365.0,1.8033645]
[1741006875306,8.7e-07,93366.0,93365.0,1.8103645]
[1741006875504,8.7e-07,93366.0,93365.0,1.37058365]
[1741006875747,8.7e-07,93366.0,93365.0,0.249899]
[1741006876819,8.7e-07,93366.0,93365.0,0.26443985]
[1741006877300,8.7e-07,93366.0,93365.0,0.34363985]
[1741006878106,8.7e-07,93366.0,93365.0,0.44293985]
[1741006878328,8.7e-07,93366.0,93365.0,0.74293985]
[1741006878522,8.7e-07,93366.0,93365.0,0.69293985]
[1741006878719,8.7e-07,93366.0,93365.0,0.74293985]
[1741006879662,8.7e-07,93366.0,93365.0,0.73593985]
[1741006879984,8.7e-07,93366.0,93365.0,0.74293985]
[1741006880395,8.7e-07,93366.0,93365.0,0.72893985]
[1741006880809,8.7e-07,93366.0,93365.0,0.74293985]
[1741006881428,0.00023976,93375.0,93372.0,0.160647]
[1741006881633,0.00023976,93375.0,93372.0,0.1766868]
[1741006881992,0.00023976,93375.0,93372.0,0.17668682]
[1741006882200,0.00023976,93375.0,93372.0,0.17668681]
[1741006882558,0.00023976,93375.0,93372.0,0.25192682]
[1741006882753,0.00023976,93375.0,93372.0,0.25042785]
[1741006882955,0.00023976,93375.0,93372.0,0.25742785]
[1741006884249,0.00023976,93375.0,93372.0,0.26442785]
[1741006884427,0.00023976,93375.0,93372.0,0.18918785]
[1741006884627,0.0011704,93373.0,93372.0,0.014]
[1741006884834,0.1618164,93373.0,93372.0,0.014]
[1741006885145,0.0263393,93373.0,93372.0,0.014]
[1741006885514,0.01797036,93373.0,93372.0,0.174647]
[1741006885734,0.00953411,93373.0,93372.0,0.007]
[1741006886137,0.00953411,93373.0,93372.0,0.014]
[1741006886317,0.00953411,93373.0,93372.0,0.02854085]
[1741006886519,0.00953411,93373.0,93372.0,0.02154085]
[1741006886724,0.0786704,93373.0,93372.0,0.007]
[1741006886999,0.24768011,93373.0,93372.0,0.012]
[1741006887363,0.24768011,93373.0,93372.0,0.005]
[1741006887551,0.24768011,93373.0,93372.0,0.011]
[1741006888005,0.24768011,93373.0,93372.0,0.005]
[1741006888180,0.24768011,93373.0,93372.0,0.01]
[1741006888832,0.26448256,93373.0,93372.0,0.01]
[1741006889035,0.02633656,93373.0,93372.0,0.02454085]
[1741006889214,0.02633656,93373.0,93372.0,0.18518785]
[1741006890726,0.02633656,93373.0,93372.0,0.02454085]
[1741006890935,0.18698256,93373.0,93372.0,0.02454085]
[1741006891135,0.18698256,93373.0,93372.0,0.01]
[1741006891337,0.56588256,93373.0,93372.0,0.01]
[1741006891656,0.61358256,93373.0,93372.0,0.01]
[1741006893051,0.61358256,93373.0,93372.0,0.005]
[1741006893479,0.61358256,93373.0,93365.0,0.0003404]
[1741006893480,0.3,93367.0,93365.0,0.0003404]
[1741006893682,0.0083141,93366.0,93365.0,0.0003404]
[1741006894327,0.1699721,93366.0,93365.0,0.0003404]
[1741006894485,0.3093141,93366.0,93365.0,0.0003404]
[1741006894687,0.3093141,93366.0,93365.0,0.0013404]
[1741006894889,0.4699721,93366.0,93365.0,0.0013404]
[1741006895133,0.3093141,93366.0,93365.0,0.01588125]
[1741006895547,0.3093141,93366.0,93365.0,0.01688125]
[1741006896218,0.0093141,93366.0,93365.0,0.17754025]
[1741006896603,0.001,93366.0,93365.0,0.17754025]
[1741006897025,0.001,93368.0,93367.0,0.17519685]
[1741006897434,0.00931002,93368.0,93367.0,0.17519685]
[1741006897589,0.001,93368.0,93367.0,0.17519685]
[1741006897803,0.0001704,93373.0,93372.0,0.17518785]
[1741006899164,0.0011704,93373.0,93372.0,0.01454085]
[1741006899327,0.0011704,93373.0,93372.0,0.01654085]
[1741006899328,0.00949943,93373.0,93372.0,0.01654085]
[1741006899556,0.17014543,93373.0,93372.0,0.01654085]
[1741006899723,0.00949943,93373.0,93372.0,0.01654085]
[1741006900011,0.00949943,93373.0,93372.0,0.17718785]
[1741006900391,0.0011704,93373.0,93372.0,0.17718785]
[1741006900592,0.0001704,93373.0,93372.0,0.17718785]
[1741006900736,0.0001704,93373.0,93372.0,0.17818785]
[1741006900935,0.01697105,93373.0,93372.0,0.17968711]
[1741006901141,0.01697105,93373.0,93372.0,0.17818785]
[1741006901668,0.01697105,93373.0,93372.0,0.25418785]
[1741006903612,0.0001704,93373.0,93372.0,0.37832785]
[1741006904537,0.0001704,93373.0,93372.0,0.37532785]
[1741006904738,0.0001704,93373.0,93372.0,0.37632785]
[1741006905303,0.0001704,93373.0,93372.0,0.37532785]
[1741006905535,0.0001704,93373.0,93372.0,0.38232785]
[1741006905727,0.0001704,93373.0,93372.0,0.30708785]
[1741006906131,0.0001704,93373.0,93372.0,0.38228785]
[1741006906335,0.0001704,93373.0,93372.0,0.30708785]
[1741006906612,0.0001704,93373.0,93372.0,0.38228785]
[1741006906814,0.0001704,93373.0,93372.0,0.38928785]
[1741006907215,0.0001704,93373.0,93372.0,0.31408785]
[1741006907417,0.0001704,93373.0,93372.0,0.38928785]
[1741006907961,0.0001704,93373.0,93372.0,0.31408785]
[1741006908477,0.0001704,93373.0,93372.0,0.38928785]
[1741006908843,0.0001704,93373.0,93372.0,0.73928785]
[1741006909652,0.00041016,93377.0,93376.0,0.51064]
[1741006909873,0.00041016,93377.0,93376.0,0.60248085]
[1741006910223,0.00041016,93377.0,93376.0,0.55248085]
[1741006910918,0.00041016,93377.0,93376.0,0.55948085]
[1741006911315,0.00041016,93377.0,93376.0,0.56648085]
[1741006911664,0.00041016,93377.0,93376.0,0.61648085]
[1741006911865,0.00041016,93377.0,93376.0,0.56648085]
[1741006913784,0.00041016,93377.0,93376.0,0.61648085]
[1741006915412,0.00041016,93377.0,93376.0,0.56648085]
[1741006918935,0.03554106,93405.0,93404.0,0.160592]
[1741006919137,0.03554106,93405.0,93404.0,0.17513285]
[1741006919437,0.05245609,93405.0,93404.0,0.17513285]
[1741006919732,0.05245609,93405.0,93404.0,0.18589514]
[1741006920757,0.05245609,93405.0,93404.0,0.02530314]
[1741006920896,0.05245609,93405.0,93404.0,0.01454085]
[1741006921240,0.05245609,93405.0,93404.0,0.17513285]
[1741006922438,0.05245609,93405.0,93389.0,0.00816998]
[1741006922439,0.13085609,93405.0,93385.0,0.0080258]
[1741006922651,0.13085609,93405.0,93372.0,0.0489]
[1741006922652,0.3,93404.0,93373.0,0.0768]
[1741006922843,0.3,93404.0,93366.0,0.0771404]
[1741006922997,0.160637,93378.0,93369.0,0.160652]
[1741006923198,0.160637,93378.0,93367.0,0.0752]
[1741006923398,0.214155,93390.0,93370.0,0.01072355]
[1741006923731,0.01679865,93378.0,93374.0,0.21419]
[1741006923933,0.01679865,93378.0,93377.0,0.160639]
[1741006924136,0.01679865,93378.0,93377.0,0.161639]
[1741006924315,0.01679865,93378.0,93377.0,0.17517985]
[1741006925926,0.03566053,93405.0,93404.0,0.160592]
[1741006926183,0.03566053,93405.0,93404.0,0.17513285]
[1741006926491,0.19625053,93405.0,93404.0,0.01454085]
[1741006926831,0.20461803,93405.0,93404.0,0.01454085]
[1741006927045,0.160618,93389.0,93384.0,0.0752]
[1741006927290,0.160615,93391.0,93385.0,0.160625]
[1741006927465,0.00832949,93388.0,93384.0,0.0752]
[1741006927667,0.33566053,93405.0,93387.0,0.01454085]
[1741006927872,0.160606,93396.0,93391.0,0.01454085]
[1741006928257,0.00832839,93395.0,93388.0,0.01454085]
[1741006928478,0.00832839,93395.0,93372.0,0.25421939]
[1741006928678,0.160625,93385.0,93384.0,0.003]
[1741006929025,0.21416,93389.0,93384.0,0.003]
[1741006929026,0.3,93393.0,93385.0,0.003]
[1741006929410,0.3,93393.0,93389.0,0.160618]
[1741006929550,0.160621,93387.0,93386.0,0.01454085]
[1741006929728,0.160618,93390.0,93386.0,0.01454085]
[1741006930145,0.160615,93391.0,93386.0,0.01454085]
[1741006930352,0.3,93391.0,93385.0,0.003]
[1741006930672,0.3,93393.0,93391.0,0.002]
[1741006931274,0.460613,93392.0,93391.0,0.002]
[1741006931467,0.3,93391.0,93381.0,0.01454085]
[1741006931671,0.35644443,93394.0,93381.0,0.01454085]
[1741006931874,0.160614,93392.0,93391.0,0.001]
[1741006932072,0.214151,93392.0,93371.0,0.01454085]
[1741006932319,0.01073909,93392.0,93366.0,0.0003404]
[1741006932613,0.460625,93385.0,93384.0,0.01954085]
[1741006933051,0.3,93385.0,93384.0,0.01454085]
[1741006933223,0.3,93385.0,93384.0,0.17516785]
[1741006933402,0.06329743,93394.0,93386.0,0.160623]
[1741006933689,0.01679743,93394.0,93393.0,0.01454085]
[1741006934212,0.0264423,93394.0,93393.0,0.01454085]
[1741006935167,0.0264423,93394.0,93393.0,0.01654085]
[1741006935388,0.0264423,93394.0,93393.0,0.17715185]
[1741006935875,0.03583063,93405.0,93393.0,0.17715185]
[1741006935876,0.160598,93401.0,93394.0,0.01454085]